bitfinex-derivatives/quotes_SOLF0:USTF0_20250706
["timestamp","ask_amount","ask_price","bid_price","bid_amount"]
[1751790271557,6.7769,147.53,147.51,2.35201719]
[1751790271753,6.7769,147.53,147.51,2.35065862]
[1751790272156,6.7763,147.54,147.52,2.35065862]
[1751790272456,4.67677473,147.53,147.51,6.7775]
[1751790272657,6.7763,147.54,147.51,6.7775]
[1751790272853,4.67690874,147.53,147.51,6.7775]
[1751790273052,6.7763,147.54,147.51,6.7775]
[1751790273453,6.7758,147.55,147.52,6.777]
[1751790273652,4.67655668,147.54,147.53,2.35065862]
[1751790274362,13.26984838,147.54,147.53,2.35065862]
[1751790274656,20.04604838,147.54,147.53,2.35065862]
[1751790274852,11.45275668,147.54,147.53,2.35065862]
[1751790275461,6.7762,147.54,147.53,2.35065862]
[1751790275659,11.48490717,147.54,147.53,2.35065862]
[1751790276556,11.48490717,147.54,147.52,2.35065862]
[1751790276759,4.70779232,147.53,147.52,2.35065862]
[1751790277058,6.7762,147.54,147.52,2.35065862]
[1751790277259,6.7762,147.54,147.53,2.35065862]
[1751790277458,11.48360767,147.54,147.53,2.35065862]
[1751790278661,6.7762,147.54,147.53,2.35065862]
[1751790278959,11.51615608,147.54,147.53,2.35065862]
[1751790279655,11.51570236,147.54,147.53,2.35065862]
[1751790280160,11.51570236,147.54,147.51,6.7774]
[1751790280368,6.7762,147.54,147.53,2.35065862]
[1751790280657,11.51515834,147.54,147.53,2.35065862]
[1751790282149,6.7762,147.54,147.53,2.35065862]
[1751790283658,6.7762,147.54,147.51,6.7774]
[1751790283659,2.35065862,147.57,147.5,6.926e-05]
[1751790283861,23.17650606,147.56,147.51,2.35065862]
[1751790284061,18.4772484,147.55,147.51,2.35065862]
[1751790284262,6.7769,147.53,147.51,2.35065862]
[1751790284563,6.7769,147.53,147.52,2.35065862]
[1751790284956,6.7774,147.52,147.5,6.926e-05]
[1751790285263,2.35082892,147.53,147.5,6.926e-05]
[1751790285461,13.37431971,147.52,147.5,6.926e-05]
[1751790285756,2.35082892,147.53,147.5,6.926e-05]
[1751790285961,13.37429086,147.52,147.5,6.926e-05]
[1751790286262,4.73748001,147.51,147.5,6.926e-05]
[1751790286563,6.7775,147.51,147.5,6.926e-05]
[1751790287456,11.5148237,147.51,147.5,6.926e-05]
[1751790291265,4.7373237,147.51,147.5,6.926e-05]
[1751790291567,6.7773,147.52,147.5,6.926e-05]
[1751790293267,9.42965543,147.56,147.5,6.926e-05]
[1751790293463,20.69769186,147.55,147.5,6.926e-05]
[1751790293764,6.7775,147.52,147.5,6.926e-05]
[1751790294163,9.42965543,147.56,147.5,6.926e-05]
[1751790294364,20.68802758,147.55,147.5,6.926e-05]
[1751790294563,20.68802758,147.54,147.5,6.926e-05]
[1751790294764,6.7775,147.51,147.5,6.926e-05]
[1751790299277,11.48422267,147.51,147.5,6.926e-05]
[1751790300979,11.49633103,147.51,147.5,6.926e-05]
[1751790309593,20.12161489,147.51,147.5,6.926e-05]
[1751790312188,11.49633103,147.51,147.5,6.926e-05]
[1751790319199,4.71883103,147.51,147.5,6.926e-05]
[1751790319401,9.42965543,147.55,147.5,6.926e-05]
[1751790319695,6.7769,147.53,147.52,2.35153001]
[1751790319900,20.1350122,147.53,147.52,197.43153001]
[1751790320102,11.50282259,147.53,147.52,197.43153001]
[1751790320301,20.13588088,147.53,147.52,197.43153001]
[1751790320901,20.13588088,147.53,147.52,195.08]
[1751790321696,25.20302596,147.53,147.52,195.08]
[1751790322295,27.55289289,147.53,147.52,195.08]
[1751790324102,6.7775,147.51,147.5,6.926e-05]
[1751790324302,25.21868598,147.51,147.5,195.06006926]
[1751790325701,20.13814183,147.51,147.5,6.926e-05]
[1751790325897,20.13814183,147.51,147.5,195.06006926]
[1751790326097,25.22027725,147.51,147.5,195.06006926]
[1751790327001,25.23389837,147.51,147.5,195.06006926]
[1751790328101,27.58776142,147.51,147.5,195.06006926]
[1751790334204,25.23389837,147.51,147.5,195.06006926]
[1751790334604,25.23389837,147.51,147.5,194.96006926]
[1751790335202,27.60589997,147.51,147.5,194.96006926]
[1751790339303,22.82721133,147.51,147.5,194.96006926]
[1751790339509,27.91526118,147.51,147.5,194.96006926]
[1751790339703,22.82721133,147.51,147.5,194.96006926]
[1751790339904,27.91526118,147.51,147.5,194.96006926]
[1751790342409,6.778,147.5,147.49,46.44]
[1751790342607,25.54186174,147.5,147.49,241.5]
[1751790343512,25.54186174,147.5,147.49,46.44]
[1751790343808,27.91573132,147.5,147.49,241.5]
[1751790345312,22.82768147,147.5,147.49,241.5]
[1751790345504,27.91310164,147.5,147.49,241.5]
[1751790345808,6.7793,147.48,147.46,2.35153001]
[1751790346006,13.67581189,147.47,147.46,2.35153001]
[1751790346203,13.67581189,147.47,147.46,197.41153001]
[1751790346503,5.04109265,147.47,147.46,197.41153001]
[1751790346708,13.86658975,147.47,147.46,197.41153001]
[1751790346908,20.64598975,147.47,147.46,197.41153001]
[1751790347208,11.82049265,147.47,147.46,197.41153001]
[1751790348412,20.63766236,147.47,147.46,197.41153001]
[1751790348909,6.7798,147.46,147.45,48.55153001]
[1751790349113,11.81577964,147.46,147.45,243.61153001]
[1751790349613,11.81577964,147.46,147.45,48.55153001]
[1751790349814,11.81577964,147.46,147.45,243.61153001]
[1751790350318,11.81577964,147.46,147.45,48.55153001]
[1751790350506,11.81577964,147.46,147.45,243.61153001]
[1751790353019,11.81577964,147.46,147.45,46.2]
[1751790353219,11.81577964,147.46,147.45,243.63153001]
[1751790353417,5.03597964,147.46,147.45,243.63153001]
[1751790355619,11.81577964,147.46,147.45,243.63153001]
[1751790355912,11.81577964,147.46,147.45,241.28]
[1751790356218,11.81577964,147.46,147.45,243.63153001]
[1751790356718,20.58771505,147.46,147.45,243.63153001]
[1751790357512,20.53424677,147.46,147.45,243.63153001]
[1751790358218,11.76231136,147.46,147.45,243.63153001]
[1751790361319,11.74935188,147.46,147.45,243.63153001]
[1751790363320,11.74935188,147.46,147.45,241.28]
[1751790363520,11.74935188,147.46,147.45,46.2]
[1751790363722,11.74935188,147.46,147.45,241.28]
[1751790365216,4.96955188,147.46,147.45,241.28]
[1751790367024,11.74935188,147.46,147.45,241.28]
[1751790367523,4.96955188,147.46,147.45,241.28]
[1751790369417,4.96955188,147.46,147.45,243.63153001]
[1751790370120,4.96955188,147.46,147.45,250.41183001]
[1751790370624,11.79539843,147.52,147.45,250.41183001]
[1751790370922,6.7787,147.49,147.47,2.35153001]
[1751790371123,6.7787,147.49,147.48,195.06]
[1751790371318,20.5822839,147.49,147.48,195.06]
[1751790373724,25.64310413,147.49,147.48,195.06]
[1751790374223,20.5822839,147.49,147.48,195.06]
[1751790374826,28.07004605,147.49,147.48,195.06]
[1751790375926,6.7798,147.46,147.45,48.55153001]
[1751790376226,11.77463765,147.46,147.45,243.61153001]
[1751790376524,11.77463765,147.46,147.45,46.2]
[1751790376726,11.77463765,147.46,147.45,241.26]
[1751790378024,20.61380829,147.46,147.45,241.26]
[1751790385329,25.66666424,147.46,147.45,241.26]
[1751790385629,25.66666424,147.46,147.45,46.2]
[1751790385830,25.66666424,147.46,147.45,241.24]
[1751790386632,15.61897064,147.46,147.45,241.24]
[1751790386832,25.56695105,147.46,147.45,241.24]
[1751790387229,18.04770328,147.46,147.45,241.24]
[1751790387533,27.99811798,147.46,147.45,241.24]
[1751790388229,27.99811798,147.46,147.45,46.2]
[1751790388435,27.99811798,147.46,147.45,241.24]
[1751790389831,25.56938534,147.46,147.45,241.24]
[1751790390131,27.9972395,147.46,147.45,241.24]
[1751790391032,27.9972395,147.46,147.45,46.2]
[1751790391233,27.9972395,147.46,147.45,241.24]
[1751790391836,21.2174395,147.46,147.45,241.24]
[1751790392134,13.73451967,147.46,147.45,243.5922923]
[1751790392435,20.51431967,147.46,147.45,243.5922923]
[1751790393132,20.51431967,147.46,147.45,241.24]
[1751790398742,13.73451967,147.46,147.45,241.24]
[1751790398942,4.898722,147.46,147.45,241.24]
[1751790399845,4.898722,147.46,147.45,243.5922923]
[1751790401042,11.678522,147.46,147.45,46.2]
[1751790401349,20.42512901,147.46,147.45,241.22]
[1751790406451,20.42512901,147.46,147.45,46.2]
[1751790406639,25.48796308,147.46,147.45,241.2]
[1751790407451,27.91424358,147.46,147.45,241.2]
[1751790409658,27.91424358,147.46,147.45,46.2]
[1751790409854,27.91424358,147.46,147.45,241.2]
[1751790410254,27.91424358,147.46,147.45,46.2]
[1751790410454,27.91424358,147.46,147.45,241.2]
[1751790410853,28.11418248,147.46,147.45,241.2]
[1751790416859,28.08753061,147.46,147.45,241.2]
[1751790419957,23.66002291,147.46,147.41,46.18]
[1751790420162,2.3522923,147.44,147.41,46.18]
[1751790420355,21.30773061,147.43,147.42,195.0]
[1751790421252,6.7817,147.42,147.41,46.18]
[1751790421452,20.6272866,147.42,147.41,241.18]
[1751790421860,15.52830701,147.42,147.41,241.18]
[1751790422060,20.5341568,147.42,147.41,241.18]
[1751790424662,13.7524568,147.42,147.41,243.53456466]
[1751790424863,9.44386842,147.47,147.41,243.53456466]
[1751790425161,7.3423426,147.46,147.44,2.35456466]
[1751790425462,6.7798,147.46,147.45,195.0]
[1751790425658,14.12217982,147.46,147.45,195.0]
[1751790426965,14.12217982,147.46,147.45,197.35456466]
[1751790427862,14.12566436,147.46,147.45,197.35456466]
[1751790432269,14.12566436,147.46,147.45,195.0]
[1751790433170,14.12566436,147.46,147.44,2.35456466]
[1751790433467,6.7798,147.46,147.45,194.98]
[1751790433669,14.07012298,147.46,147.45,194.98]
[1751790433967,14.07011922,147.46,147.45,194.98]
[1751790434172,11.72409291,147.46,147.45,194.98]
[1751790436971,25.50040099,147.46,147.45,194.98]
[1751790440077,27.85041453,147.46,147.45,194.98]
[1751790444883,25.50040099,147.46,147.45,194.98]
[1751790448984,25.50442162,147.46,147.45,194.98]
[1751790449383,27.85627917,147.46,147.45,194.98]
[1751790450287,6.7807,147.44,147.43,2.35313691]
[1751790450587,20.56102871,147.44,147.43,194.92]
[1751790451587,6.7812,147.43,147.42,2.35313691]
[1751790451788,20.56152871,147.43,147.42,197.27313691]
[1751790451988,20.56228806,147.43,147.42,194.92]
[1751790453185,6.7817,147.42,147.41,46.16]
[1751790453391,20.56278806,147.42,147.41,241.08]
[1751790454092,6.7826,147.4,147.39,47.83556926]
[1751790454292,20.72749057,147.4,147.39,242.77556926]
[1751790454588,13.94489057,147.4,147.31,2.3338]
[1751790454891,21.26550588,147.39,147.36,2.35480153]
[1751790455089,13.94489057,147.38,147.37,194.94]
[1751790455294,19.42704913,147.38,147.37,194.94]
[1751790456291,17.17238801,147.38,147.37,194.94]
[1751790456493,19.3841288,147.38,147.36,2.35480153]
[1751790456694,4.90642945,147.37,147.36,2.35480153]
[1751790456896,4.90642945,147.37,147.36,197.31480153]
[1751790457096,11.69042945,147.37,147.36,197.31480153]
[1751790458092,12.06245784,147.37,147.36,197.31480153]
[1751790458596,12.06245784,147.37,147.36,194.96]
[1751790458796,12.06245784,147.37,147.36,197.31480153]
[1751790459395,12.06245784,147.37,147.36,2.35480153]
[1751790459598,5.27845784,147.37,147.36,197.31480153]
[1751790459792,6.9881,147.42,147.36,197.31480153]
[1751790459999,6.783,147.39,147.38,2.35480153]
[1751790460198,11.88406507,147.39,147.38,2.35480153]
[1751790460497,11.88406507,147.39,147.38,197.31480153]
[1751790462696,5.10106507,147.39,147.31,62.0]
[1751790462900,5.10106507,147.38,147.35,2.35564324]
[1751790463097,5.10106507,147.37,147.35,197.33564324]
[1751790463300,5.09678444,147.36,147.35,194.98]
[1751790463602,6.7848,147.36,147.35,197.33564324]
[1751790463900,2.34815395,147.41,147.35,197.33564324]
[1751790464201,16.412479,147.42,147.35,197.33564324]
[1751790464202,6.7841,147.37,147.36,2.35564324]
[1751790464403,11.88135066,147.37,147.36,2.35564324]
[1751790469001,6.7841,147.37,147.36,2.35564324]
[1751790470101,6.7841,147.37,147.36,2.35564227]
[1751790471410,5.06670636,147.37,147.32,46.18]
[1751790471705,2.35564227,147.38,147.34,2.35564227]
[1751790471706,5.06670636,147.36,147.34,2.35564227]
[1751790472009,6.7853,147.34,147.33,46.16]
[1751790472309,6.7853,147.34,147.33,241.16]
[1751790472708,6.7853,147.34,147.33,46.16]
[1751790473505,11.85025411,147.34,147.33,46.16]
[1751790474207,6.7853,147.34,147.33,46.16]
[1751790475110,2.35564227,147.34,147.24,585.92]
[1751790475304,2.3986,147.37,147.31,197.37564227]
[1751790475305,5.05986,147.33,147.31,197.37564227]
[1751790475502,6.7866,147.32,147.29,46.16]
[1751790475707,6.7866,147.32,147.31,2.35564227]
[1751790475905,6.7866,147.32,147.3,195.02]
[1751790476510,6.7867,147.31,147.3,195.02]
[1751790477107,2.3986,147.37,147.3,195.02]
[1751790477314,5.05610459,147.36,147.31,3.68344791]
[1751790477509,2.3986,147.37,147.31,3.68344791]
[1751790477714,5.03470602,147.36,147.31,3.68344791]
[1751790477914,2.3986,147.37,147.31,10.46994791]
[1751790478122,5.03443644,147.36,147.31,10.46994791]
[1751790478421,2.3986,147.37,147.31,10.46994791]
[1751790478620,6.7856,147.34,147.31,10.46994791]
[1751790478824,6.7856,147.34,147.31,3.68344791]
[1751790479023,2.3986,147.37,147.31,3.68344791]
[1751790479214,5.00020129,147.36,147.31,3.68344791]
[1751790479416,2.3986,147.37,147.31,3.68344791]
[1751790479622,5.00020959,147.36,147.31,3.68344791]
[1751790479821,2.3986,147.37,147.31,3.68344791]
[1751790480018,5.00020445,147.36,147.3,195.02]
[1751790480323,2.3986,147.37,147.3,195.02]
[1751790480324,4.99953989,147.35,147.3,195.02]
[1751790480521,4.99953989,147.34,147.3,195.02]
[1751790480825,6.7872,147.3,147.29,46.16]
[1751790481026,6.7872,147.3,147.29,241.36]
[1751790483329,6.7872,147.3,147.29,46.16]
[1751790483825,6.7871,147.31,147.29,241.34]
[1751790484425,6.7871,147.31,147.29,245.02344791]
[1751790485726,6.7871,147.31,147.3,195.24]
[1751790487732,6.7872,147.3,147.29,46.16]
[1751790488230,6.7872,147.3,147.29,241.38]
[1751790488620,6.7872,147.3,147.29,46.16]
[1751790488825,6.7872,147.3,147.29,241.38]
[1751790490228,6.7872,147.3,147.29,46.16]
[1751790490428,6.7872,147.3,147.29,241.38]
[1751790492131,11.77737596,147.3,147.29,241.38]
[1751790497642,11.77737596,147.3,147.29,241.32]
[1751790498839,6.7869,147.31,147.29,241.32]
[1751790499642,4.52,147.35,147.29,241.32]
[1751790499936,19.1286448,147.34,147.29,241.32]
[1751790500137,6.7872,147.3,147.29,241.32]
[1751790500342,11.7902172,147.3,147.29,241.32]
[1751790500738,5.0030172,147.3,147.29,241.32]
[1751790501434,4.52,147.35,147.29,241.32]
[1751790501639,18.94703741,147.34,147.29,241.32]
[1751790501840,18.94703741,147.33,147.29,241.32]
[1751790502039,4.81978058,147.32,147.29,241.32]
[1751790502238,6.787,147.31,147.29,241.32]
[1751790503137,6.7872,147.3,147.29,241.32]
[1751790503839,6.7872,147.3,147.29,46.16]
[1751790504038,6.7872,147.3,147.29,241.26]
[1751790510747,6.7872,147.3,147.29,46.16]
[1751790511045,6.7872,147.3,147.29,241.32]
[1751790512444,11.6031828,147.3,147.29,46.16]
[1751790512647,25.75181129,147.3,147.29,241.64]
[1751790514648,6.7876,147.29,147.28,1.67556926]
[1751790514846,11.6035828,147.29,147.28,197.17556926]
[1751790515147,20.44407574,147.29,147.28,197.17556926]
[1751790515643,20.44407574,147.29,147.28,1.67556926]
[1751790515847,25.75591581,147.29,147.28,197.13556926]
[1751790516048,25.75591581,147.29,147.28,1.67556926]
[1751790516442,25.75591581,147.29,147.28,197.13556926]
[1751790516638,25.75591581,147.29,147.28,1.67556926]
[1751790516943,28.11639057,147.29,147.28,197.13556926]
[1751790517148,28.11639057,147.29,147.28,6.926e-05]
[1751790517952,28.12309598,147.29,147.28,6.926e-05]
[1751790520855,28.11142523,147.29,147.28,6.926e-05]
[1751790525758,30.47085614,147.29,147.28,6.926e-05]
[1751790526859,30.46564794,147.29,147.28,6.926e-05]
[1751790533057,30.41988162,147.29,147.28,6.926e-05]
[1751790538967,30.41675957,147.29,147.28,6.926e-05]
[1751790542164,30.38064601,147.29,147.28,6.926e-05]
[1751790544266,30.38242423,147.29,147.28,6.926e-05]
[1751790545467,39.77732503,147.29,147.28,6.926e-05]
[1751790546563,37.41789412,147.29,147.28,6.926e-05]
[1751790546769,39.77732503,147.29,147.28,6.926e-05]
[1751790550958,6.7906,147.23,147.21,48.61943091]
[1751790551564,6.7909,147.22,147.21,46.26]
[1751790551765,4.76590135,147.22,147.19,2.35943091]
[1751790551965,2.35943091,147.23,147.19,2.35943091]
[1751790552163,18.79765889,147.22,147.18,4.56773091]
[1751790552361,4.76564556,147.21,147.18,4.56773091]
[1751790552563,2.35943091,147.23,147.18,4.56773091]
[1751790552763,18.77285703,147.22,147.18,4.56773091]
[1751790552968,4.76589036,147.21,147.18,4.56773091]
[1751790553170,6.7921,147.2,147.18,2.2083]
[1751790553364,6.7921,147.2,147.18,4.56773091]
[1751790553871,6.7922,147.19,147.18,2.35943091]
[1751790554168,2.35943091,147.22,147.17,47.93556926]
[1751790554368,6.7925,147.19,147.17,50.29500017]
[1751790554569,2.35943091,147.22,147.17,50.29500017]
[1751790554772,5.12679273,147.21,147.17,50.29500017]
[1751790555062,5.12679273,147.2,147.17,50.29500017]
[1751790555261,5.12679273,147.19,147.17,50.29500017]
[1751790555461,2.35943091,147.22,147.17,50.29500017]
[1751790555661,6.7927,147.18,147.17,50.29500017]
[1751790556369,6.7924,147.19,147.17,50.29500017]
[1751790556965,11.91695203,147.18,147.17,47.93556926]
[1751790557169,11.91695203,147.18,147.17,50.29500017]
[1751790557368,11.91695203,147.18,147.17,47.93556926]
[1751790558865,6.7927,147.18,147.17,47.93556926]
[1751790559671,11.87922074,147.18,147.17,47.93556926]
[1751790562274,6.7927,147.18,147.17,47.93556926]
[1751790567778,6.7922,147.2,147.17,50.29500017]
[1751790567978,2.35943091,147.22,147.18,2.35943091]
[1751790568171,5.06920365,147.21,147.18,2.35943091]
[1751790568375,5.06920365,147.2,147.18,2.35943091]
[1751790568578,2.35943091,147.22,147.18,2.35943091]
[1751790568778,5.07014319,147.21,147.18,2.35943091]
[1751790569077,5.07014319,147.2,147.18,2.35943091]
[1751790569379,4.7295,147.25,147.18,2.35943091]
[1751790569579,2.35943091,147.23,147.19,2.35943091]
[1751790569779,5.07015538,147.22,147.19,2.35943091]
[1751790570075,2.35943091,147.23,147.19,2.35943091]
[1751790570076,5.07015538,147.21,147.19,2.35943091]
[1751790570278,5.07015538,147.2,147.19,2.35943091]
[1751790570674,2.35943091,147.23,147.19,2.35943091]
[1751790570874,5.07052219,147.22,147.19,2.35943091]
[1751790571075,5.07052219,147.21,147.19,2.35943091]
[1751790571275,6.7916,147.21,147.19,2.35943091]
[1751790571674,6.791,147.22,147.19,9.15163091]
[1751790571870,11.7244008,147.27,147.21,2.35943091]
[1751790572070,2.35943091,147.25,147.21,2.35943091]
[1751790572280,5.07060926,147.24,147.21,2.35943091]
[1751790572579,11.86130926,147.23,147.21,2.35943091]
[1751790572783,2.35943091,147.25,147.21,2.35943091]
[1751790572974,5.07141435,147.24,147.21,2.35943091]
[1751790573176,5.07141435,147.23,147.21,2.35943091]
[1751790573481,2.35943091,147.25,147.21,2.35943091]
[1751790573683,5.02422933,147.24,147.21,2.35943091]
[1751790573877,5.02422933,147.23,147.21,2.35943091]
[1751790574170,2.35943091,147.25,147.21,2.35943091]
[1751790574375,5.06881684,147.24,147.21,2.35943091]
[1751790574583,5.06881684,147.23,147.21,2.35943091]
[1751790574876,2.35943091,147.25,147.21,2.35943091]
[1751790575083,6.7907,147.23,147.21,2.35943091]
[1751790575783,6.7909,147.22,147.21,2.35943091]
[1751790576281,11.86054432,147.22,147.21,2.35943091]
[1751790577182,6.7909,147.22,147.21,2.35943091]
[1751790577480,11.86119574,147.22,147.21,2.35943091]
[1751790580887,6.7909,147.22,147.21,2.35943091]
[1751790581183,11.86315599,147.22,147.21,2.35943091]
[1751790581882,5.07225599,147.22,147.21,2.35943091]
[1751790582378,6.7906,147.23,147.21,2.35943091]
[1751790583283,5.07500766,147.22,147.21,2.35943091]
[1751790584785,11.86590766,147.22,147.21,2.35943091]
[1751790591989,11.86590766,147.22,147.2,195.26]
[1751790592185,5.07500766,147.21,147.2,195.26]
[1751790592389,6.7909,147.22,147.2,195.26]
[1751790592687,5.10219905,147.21,147.2,195.26]
[1751790593293,5.10219905,147.21,147.2,197.61943091]
[1751790600599,11.89349905,147.21,147.2,197.61943091]
[1751790601100,11.89349905,147.21,147.2,243.83943091]
[1751790601699,5.10219905,147.21,147.2,243.83943091]
[1751790602295,5.10219905,147.21,147.2,241.48]
[1751790602496,2.35943091,147.24,147.2,241.48]
[1751790602702,13.8572677,147.23,147.2,241.48]
[1751790602902,2.35943091,147.24,147.19,2.35943091]
[1751790602903,5.10517822,147.22,147.19,2.35943091]
[1751790603203,5.10476738,147.21,147.2,195.2]
[1751790603597,11.89606738,147.21,147.2,195.2]
[1751790603802,5.10476738,147.21,147.2,195.2]
[1751790604104,2.35943091,147.23,147.2,195.2]
[1751790604303,5.08720466,147.22,147.2,195.2]
[1751790604500,6.7911,147.22,147.2,195.2]
[1751790604696,6.7911,147.22,147.2,197.55943091]
[1751790605004,6.7911,147.22,147.2,195.2]
[1751790605206,6.7911,147.22,147.2,197.55943091]
[1751790608508,6.7913,147.21,147.2,197.55943091]
[1751790609612,6.7913,147.21,147.2,2.35943091]
[1751790609797,6.7913,147.21,147.2,197.55943091]
[1751790612307,20.59128892,147.21,147.2,197.55943091]
[1751790612609,6.7911,147.22,147.2,197.55943091]
[1751790613113,14.07827997,147.27,147.21,2.35943091]
[1751790613309,13.74743324,147.26,147.25,2.35943091]
[1751790613712,21.19537881,147.26,147.25,2.35943091]
[1751790614513,5.01769828,147.26,147.25,2.35943091]
[1751790615315,13.76643671,147.26,147.25,2.35943091]
[1751790615512,13.76643671,147.26,147.25,9.14893091]
[1751790615714,9.38934906,147.3,147.25,2.35943091]
[1751790615917,6.7872,147.3,147.29,2.35943091]
[1751790616216,6.7872,147.3,147.29,197.55943091]
[1751790617115,6.7872,147.3,147.29,195.2]
[1751790619211,2.2896,147.31,147.29,197.55943091]
[1751790619812,9.0765,147.31,147.29,197.55943091]
[1751790620515,6.7869,147.31,147.29,197.55943091]
[1751790623513,6.7869,147.31,147.3,2.35943091]
[1751790624522,6.7872,147.3,147.29,197.55943091]
[1751790629418,6.7869,147.31,147.29,197.55943091]
[1751790629621,6.7869,147.31,147.3,2.35943091]
[1751790629822,11.58315071,147.31,147.3,2.35943091]
[1751790630323,6.7869,147.31,147.3,2.35943091]
[1751790631325,6.7869,147.31,147.29,195.2]
[1751790631522,6.7869,147.31,147.3,2.35943091]
[1751790633326,6.7864,147.32,147.3,2.35943091]
[1751790633723,6.7864,147.32,147.31,2.35943091]
[1751790633921,11.58046394,147.32,147.31,2.35943091]
[1751790634823,6.7864,147.32,147.31,2.35943091]
[1751790636629,6.7859,147.33,147.31,2.35943091]
[1751790636830,6.7859,147.33,147.32,197.43943091]
[1751790638232,6.7854,147.34,147.32,197.43943091]
[1751790638531,6.7854,147.34,147.33,2.35943091]
[1751790639131,6.7858,147.33,147.32,197.43943091]
[1751790639339,6.7858,147.33,147.32,195.08]
[1751790643337,6.7858,147.33,147.32,197.43943091]
[1751790645442,6.7858,147.33,147.32,195.08]
[1751790645644,6.7858,147.33,147.32,197.43943091]
[1751790647950,6.7858,147.33,147.32,195.08]
[1751790649945,6.7858,147.33,147.32,197.43943091]
[1751790652746,6.7858,147.33,147.32,195.08]
[1751790653246,11.59168973,147.33,147.32,195.08]
[1751790654046,11.59168973,147.33,147.32,197.43943091]
[1751790656146,20.32196128,147.33,147.32,197.43943091]
[1751790657050,20.30888259,147.33,147.32,197.43943091]
[1751790657348,20.30888381,147.33,147.32,197.43943091]
[1751790659441,20.30888381,147.33,147.32,195.08]
[1751790659654,20.30888381,147.33,147.32,197.43943091]
[1751790660054,20.30888381,147.33,147.32,195.08]
[1751790660243,15.51607155,147.33,147.32,195.08]
[1751790660447,22.63454687,147.33,147.32,195.08]
[1751790666053,22.63454687,147.33,147.32,197.43943091]
[1751790666259,20.32128727,147.33,147.32,197.43943091]
[1751790669661,13.53548727,147.33,147.32,197.43943091]
[1751790670162,13.53548727,147.33,147.32,195.08]
[1751790670362,13.53548727,147.33,147.32,197.43943091]
[1751790671763,20.32128727,147.33,147.32,195.08]
[1751790671967,13.53548727,147.33,147.31,46.18]
[1751790672160,2.35943091,147.34,147.32,195.06]
[1751790672463,22.65424924,147.33,147.32,195.06]
[1751790672664,36.4817402,147.33,147.32,195.06]
[1751790672860,32.0435983,147.33,147.32,195.06]
[1751790673164,22.65424924,147.33,147.32,195.06]
[1751790673864,27.10579972,147.33,147.32,195.06]
[1751790674054,36.49514878,147.33,147.32,195.06]
[1751790674559,6.7863,147.32,147.31,46.18]
[1751790674760,22.65495241,147.32,147.31,241.22]
[1751790677467,22.65735959,147.32,147.31,241.22]
[1751790680258,22.65735959,147.32,147.31,243.57943091]
[1751790683664,20.34994416,147.32,147.31,243.57943091]
[1751790686372,13.56364416,147.32,147.31,243.57943091]
[1751790686872,13.56364416,147.32,147.31,241.22]
[1751790687175,13.56364416,147.32,147.31,243.57943091]
[1751790688478,20.34994416,147.32,147.31,243.57943091]
[1751790691781,22.66568781,147.32,147.31,241.22]
[1751790692082,22.66568759,147.32,147.31,241.22]
[1751790692280,20.34994416,147.32,147.31,241.22]
[1751790695384,20.35958322,147.32,147.31,241.22]
[1751790695780,6.7886,147.27,147.26,586.14]
[1751790695981,13.57003603,147.27,147.24,46.16]
[1751790696181,15.92937466,147.26,147.24,46.16]
[1751790696383,15.9281373,147.25,147.19,586.12]
[1751790696685,13.56879867,147.24,147.21,2.35933863]
[1751790696882,4.80396796,147.23,147.22,195.04]
[1751790697085,4.80396796,147.23,147.22,197.39933863]
[1751790697276,6.7902,147.24,147.22,197.39933863]
[1751790697787,6.7896,147.25,147.23,2.35933863]
[1751790697988,6.7896,147.25,147.24,195.04]
[1751790698182,20.23800185,147.25,147.24,195.04]
[1751790698382,11.49521011,147.25,147.24,195.04]
[1751790698783,6.7896,147.25,147.24,195.04]
[1751790700693,6.7888,147.27,147.24,197.39933863]
[1751790700893,2.35933863,147.29,147.24,197.39933863]
[1751790701192,15.62806007,147.28,147.24,197.39933863]
[1751790701394,6.7893,147.26,147.24,197.39933863]
[1751790701596,2.35933863,147.27,147.24,195.04]
[1751790702489,6.789,147.26,147.24,195.04]
[1751790706004,6.789,147.26,147.24,197.39933863]
[1751790712316,6.7888,147.27,147.24,197.39933863]
[1751790713810,6.7888,147.27,147.24,195.04]
[1751790714008,6.7888,147.27,147.24,197.39933863]